[Event "*** Titled Tuesday Blitz"]
[Site "Chess.com"]
[Date "2018.01.02"]
[Round "4"]
[White "Firebullet"]
[Black "Msb2"]
[Result "0-1"]
[WhiteElo "2452"]
[BlackElo "2740"]
[TimeControl "180+2"]
[EndTime "13:52:17 PST"]
[Termination "Msb2 won by resignation"]

1. d4 {[%clk 0:03:01.6]} 1... Nf6 {[%clk 0:03:00.8]} 2. c4 {[%clk 0:03:02.2]}
2... c5 {[%clk 0:03:01.6]} 3. d5 {[%clk 0:03:03.4]} 3... b5 {[%clk 0:03:02.5]}
4. cxb5 {[%clk 0:03:05.3]} 4... a6 {[%clk 0:03:03.6]} 5. bxa6 {[%clk 0:03:06.5]}
5... g6 {[%clk 0:03:04.7]} 6. Nc3 {[%clk 0:03:07.8]} 6... Bg7 {[%clk 0:03:05.9]}
7. e4 {[%clk 0:03:09.4]} 7... O-O {[%clk 0:03:07.5]} 8. Nf3 {[%clk 0:03:10.9]}
8... Qa5 {[%clk 0:03:08.6]} 9. Nd2 {[%clk 0:03:03.6]} 9... Bxa6 {[%clk
0:03:05.7]} 10. Bxa6 {[%clk 0:03:03.9]} 10... Qxa6 {[%clk 0:03:07.6]} 11. Qe2
{[%clk 0:03:04.3]} 11... d6 {[%clk 0:03:07.4]} 12. Qxa6 {[%clk 0:03:02.8]} 12...
Nxa6 {[%clk 0:03:09.3]} 13. O-O {[%clk 0:03:04.2]} 13... Rfb8 {[%clk 0:03:07.2]}
14. Re1 {[%clk 0:02:55]} 14... Nb4 {[%clk 0:03:07.3]} 15. Re2 {[%clk 0:02:22.5]}
15... Nd3 {[%clk 0:02:51.7]} 16. Nc4 {[%clk 0:02:17.3]} 16... Rb4 {[%clk
0:02:52]} 17. Ne3 {[%clk 0:02:09.9]} 17... Nxe4 {[%clk 0:02:42.9]} 18. Nxe4
{[%clk 0:02:10.4]} 18... Rxe4 {[%clk 0:02:44.8]} 19. Kf1 {[%clk 0:02:07.1]}
19... Nxc1 {[%clk 0:02:43.1]} 20. Rxc1 {[%clk 0:02:07.9]} 20... Rxa2 {[%clk
0:02:44.6]} 21. Nc4 {[%clk 0:02:01.5]} 21... Rxe2 {[%clk 0:02:42.2]} 22. Kxe2
{[%clk 0:02:03.4]} 22... Bd4 {[%clk 0:02:39.2]} 23. Rc2 {[%clk 0:02:04.1]} 23...
Kg7 {[%clk 0:02:39.1]} 24. f3 {[%clk 0:02:03.8]} 24... Kf6 {[%clk 0:02:36]} 25.
Kd3 {[%clk 0:02:02.9]} 25... Ra1 {[%clk 0:02:35.9]} 26. Re2 {[%clk 0:02:02.6]}
26... Bg1 {[%clk 0:02:30.7]} 27. h3 {[%clk 0:02:03.4]} 27... Rd1+ {[%clk
0:02:26.4]} 28. Nd2 {[%clk 0:02:04]} 28... Ra1 {[%clk 0:02:19.8]} 29. Ne4+
{[%clk 0:02:03.3]} 29... Kg7 {[%clk 0:02:19.4]} 30. Ng5 {[%clk 0:01:59.7]} 30...
Ra4 {[%clk 0:02:11.3]} 31. Kc2 {[%clk 0:01:51.4]} 31... Rc4+ {[%clk 0:02:05.8]}
32. Kd1 {[%clk 0:01:51.6]} 32... Rd4+ {[%clk 0:01:46.3]} 33. Rd2 {[%clk
0:01:52.5]} 33... h6 {[%clk 0:01:15.7]} 34. Ne4 {[%clk 0:01:53.2]} 34... f5
{[%clk 0:01:16.9]} 35. Nc3 {[%clk 0:01:45.8]} 35... Kf6 {[%clk 0:01:18.2]} 36.
Ne2 {[%clk 0:01:43]} 36... Rxd2+ {[%clk 0:01:09.9]} 37. Kxd2 {[%clk 0:01:44.9]}
37... Bf2 {[%clk 0:01:11]} 38. Kd3 {[%clk 0:01:45.3]} 38... Ke5 {[%clk
0:01:07.5]} 39. Kc4 {[%clk 0:01:46.2]} 39... g5 {[%clk 0:01:02.7]} 40. b3 {[%clk
0:01:46.5]} 40... h5 {[%clk 0:01:02.5]} 41. h4 {[%clk 0:01:34]} 41... Bxh4
{[%clk 0:00:53.9]} 42. g3 {[%clk 0:01:34.3]} 42... Bxg3 {[%clk 0:00:55.3]} 43.
Nxg3 {[%clk 0:01:36.2]} 43... h4 {[%clk 0:00:57]} 44. Ne2 {[%clk 0:01:29.4]}
44... h3 {[%clk 0:00:29.4]} 45. f4+ {[%clk 0:01:24.3]} 45... gxf4 {[%clk
0:00:31.3]} 46. Ng1 {[%clk 0:01:25.9]} 46... Ke4 {[%clk 0:00:26.3]} 47. Nxh3
{[%clk 0:01:26.9]} 47... f3 {[%clk 0:00:28.2]} 48. Kc3 {[%clk 0:01:26.1]} 48...
Ke3 {[%clk 0:00:28.9]} 0-1

[Event "*** Titled Tuesday Blitz"]
[Site "Chess.com"]
[Date "2018.01.02"]
[Round "4"]
[White "1e41-0"]
[Black "yosephtaher"]
[Result "1-0"]
[WhiteElo "2361"]
[BlackElo "2475"]
[TimeControl "180+2"]
[EndTime "13:52:21 PST"]
[Termination "1e41-0 won on time"]

1. d4 {[%clk 0:03:01.9]} 1... Nf6 {[%clk 0:03:00.9]} 2. c4 {[%clk 0:03:02.1]}
2... g6 {[%clk 0:03:02.4]} 3. Nc3 {[%clk 0:03:02.7]} 3... Bg7 {[%clk 0:03:03.9]}
4. e4 {[%clk 0:03:03.3]} 4... d6 {[%clk 0:03:05.4]} 5. Nge2 {[%clk 0:03:04.2]}
5... O-O {[%clk 0:03:06.7]} 6. f3 {[%clk 0:03:05.8]} 6... c5 {[%clk 0:03:07.8]}
7. d5 {[%clk 0:03:06.7]} 7... e6 {[%clk 0:03:08.6]} 8. Ng3 {[%clk 0:03:07.8]}
8... exd5 {[%clk 0:03:10.1]} 9. cxd5 {[%clk 0:03:09.7]} 9... a6 {[%clk
0:03:10.8]} 10. a4 {[%clk 0:03:10.5]} 10... Nbd7 {[%clk 0:03:12.4]} 11. Be2
{[%clk 0:03:11]} 11... Rb8 {[%clk 0:03:13.8]} 12. O-O {[%clk 0:03:11.9]} 12...
Qa5 {[%clk 0:03:15.3]} 13. Bd2 {[%clk 0:03:03.5]} 13... Qb4 {[%clk 0:03:13.8]}
14. Nb5 {[%clk 0:02:54]} 14... Qxb2 {[%clk 0:03:13.7]} 15. Bc3 {[%clk
0:02:53.9]} 15... Qxa1 {[%clk 0:03:14.2]} 16. Qxa1 {[%clk 0:02:52.4]} 16... axb5
{[%clk 0:03:16.1]} 17. Bxb5 {[%clk 0:02:52]} 17... Ne8 {[%clk 0:03:15.1]} 18.
Bxg7 {[%clk 0:02:51.9]} 18... Nxg7 {[%clk 0:03:15.9]} 19. f4 {[%clk 0:02:50.5]}
19... c4 {[%clk 0:03:10.5]} 20. Qd4 {[%clk 0:02:27.3]} 20... Nc5 {[%clk
0:03:08.2]} 21. e5 {[%clk 0:02:24.9]} 21... b6 {[%clk 0:03:09.6]} 22. exd6
{[%clk 0:02:22.3]} 22... Rd8 {[%clk 0:03:10.1]} 23. Qf6 {[%clk 0:01:55.9]} 23...
Bf5 {[%clk 0:03:06.3]} 24. Nxf5 {[%clk 0:01:52.7]} 24... Nxf5 {[%clk 0:03:06.2]}
25. d7 {[%clk 0:01:38]} 25... Nxd7 {[%clk 0:03:00.9]} 26. Bxd7 {[%clk
0:01:38.3]} 26... Rxd7 {[%clk 0:03:02.8]} 27. g4 {[%clk 0:01:35.5]} 27... Nd6
{[%clk 0:02:51]} 28. f5 {[%clk 0:01:33.4]} 28... Re8 {[%clk 0:02:50]} 29. fxg6
{[%clk 0:01:32.7]} 29... hxg6 {[%clk 0:02:51.9]} 30. h3 {[%clk 0:01:29.2]} 30...
b5 {[%clk 0:02:44]} 31. axb5 {[%clk 0:01:29.4]} 31... Nxb5 {[%clk 0:02:45.9]}
32. Qc6 {[%clk 0:01:27.8]} 32... Red8 {[%clk 0:02:37]} 33. Qxb5 {[%clk
0:01:26.9]} 33... c3 {[%clk 0:02:38.5]} 34. Qc4 {[%clk 0:01:26.9]} 34... Rxd5
{[%clk 0:02:39.6]} 35. Qxc3 {[%clk 0:01:27.7]} 35... Rd3 {[%clk 0:02:40.8]} 36.
Qf6 {[%clk 0:01:28]} 36... R8d7 {[%clk 0:02:40.4]} 37. Rf3 {[%clk 0:01:26.7]}
37... Rd2 {[%clk 0:02:41.4]} 38. Rf2 {[%clk 0:01:26.6]} 38... R2d3 {[%clk
0:02:41.3]} 39. Kg2 {[%clk 0:01:27.4]} 39... Re3 {[%clk 0:02:42.5]} 40. Rf3
{[%clk 0:01:27.5]} 40... Re2+ {[%clk 0:02:43.6]} 41. Kg3 {[%clk 0:01:28.3]}
41... Re1 {[%clk 0:02:45.2]} 42. Qc3 {[%clk 0:01:27.8]} 42... Re8 {[%clk
0:02:45.6]} 43. Qc6 {[%clk 0:01:27.8]} 43... Rde7 {[%clk 0:02:46.2]} 44. h4
{[%clk 0:01:28.5]} 44... Rd8 {[%clk 0:02:47.2]} 45. Qf6 {[%clk 0:01:28]} 45...
Rde8 {[%clk 0:02:46.4]} 46. h5 {[%clk 0:01:24.4]} 46... gxh5 {[%clk 0:02:47.6]}
47. Rf5 {[%clk 0:01:23.1]} 47... Re3+ {[%clk 0:02:47.9]} 48. Kh4 {[%clk
0:01:23.1]} 1-0

[Event "*** Titled Tuesday Blitz"]
[Site "Chess.com"]
[Date "2018.01.02"]
[Round "4"]
[White "timator"]
[Black "MateusViageiro"]
[Result "1-0"]
[WhiteElo "2323"]
[BlackElo "2171"]
[TimeControl "180+2"]
[EndTime "13:52:24 PST"]
[Termination "timator won on time"]

1. Nf3 {[%clk 0:03:00.8]} 1... Nf6 {[%clk 0:02:59.7]} 2. g3 {[%clk 0:02:48.1]}
2... b6 {[%clk 0:02:58]} 3. Bg2 {[%clk 0:02:47.9]} 3... Bb7 {[%clk 0:02:59.3]}
4. O-O {[%clk 0:02:49.8]} 4... e6 {[%clk 0:02:59.8]} 5. b3 {[%clk 0:02:49]} 5...
c5 {[%clk 0:03:00.3]} 6. Bb2 {[%clk 0:02:50.9]} 6... Be7 {[%clk 0:03:00.9]} 7.
d3 {[%clk 0:02:51.7]} 7... O-O {[%clk 0:03:00.2]} 8. Nbd2 {[%clk 0:02:53.6]}
8... d5 {[%clk 0:02:58.1]} 9. Qe1 {[%clk 0:02:53.2]} 9... Nc6 {[%clk 0:02:58.6]}
10. e4 {[%clk 0:02:54.1]} 10... dxe4 {[%clk 0:02:55.2]} 11. Nxe4 {[%clk
0:02:53.8]} 11... Nxe4 {[%clk 0:02:53.2]} 12. Qxe4 {[%clk 0:02:53.8]} 12... Bf6
{[%clk 0:02:50.4]} 13. Bxf6 {[%clk 0:02:33.2]} 13... Qxf6 {[%clk 0:02:48.5]} 14.
Ne5 {[%clk 0:02:34.3]} 14... Qxe5 {[%clk 0:02:42]} 15. Qxe5 {[%clk 0:02:32.6]}
15... Nxe5 {[%clk 0:02:42.6]} 16. Bxb7 {[%clk 0:02:30.8]} 16... Rab8 {[%clk
0:02:43.1]} 17. Bg2 {[%clk 0:02:31.3]} 17... Rfd8 {[%clk 0:02:41.5]} 18. Rfe1
{[%clk 0:02:28]} 18... Ng4 {[%clk 0:02:38.6]} 19. a4 {[%clk 0:02:25.5]} 19... a5
{[%clk 0:02:36.7]} 20. h3 {[%clk 0:02:13.4]} 20... Nf6 {[%clk 0:02:35.8]} 21. f4
{[%clk 0:02:14.4]} 21... Kf8 {[%clk 0:02:33.2]} 22. Kf2 {[%clk 0:02:15]} 22...
Rd4 {[%clk 0:02:26.3]} 23. Re5 {[%clk 0:02:11.7]} 23... Rbd8 {[%clk 0:02:23.8]}
24. Bf3 {[%clk 0:01:57.3]} 24... Nd7 {[%clk 0:02:23.9]} 25. Re4 {[%clk
0:01:55.8]} 25... Nb8 {[%clk 0:02:22.7]} 26. Rae1 {[%clk 0:01:41.4]} 26... Na6
{[%clk 0:02:20.9]} 27. Bd1 {[%clk 0:01:36.4]} 27... Nb4 {[%clk 0:02:18.7]} 28.
Re5 {[%clk 0:01:25.2]} 28... Nd5 {[%clk 0:02:06.2]} 29. Ke2 {[%clk 0:00:58.9]}
29... Ke7 {[%clk 0:01:59.1]} 30. Kd2 {[%clk 0:00:58.4]} 30... Nb4 {[%clk
0:01:47]} 31. f5 {[%clk 0:00:56.4]} 31... R4d6 {[%clk 0:01:40.6]} 32. fxe6
{[%clk 0:00:52.9]} 32... Rxe6 {[%clk 0:01:39.1]} 33. Rxe6+ {[%clk 0:00:33.5]}
33... fxe6 {[%clk 0:01:38.2]} 34. Bg4 {[%clk 0:00:35.4]} 34... Rd6 {[%clk
0:01:37.4]} 35. Bf3 {[%clk 0:00:35.5]} 1-0

[Event "*** Titled Tuesday Blitz"]
[Site "Chess.com"]
[Date "2018.01.02"]
[Round "4"]
[White "51616516516"]
[Black "SquashMaestro"]
[Result "1-0"]
[WhiteElo "2074"]
[BlackElo "2242"]
[TimeControl "180+2"]
[EndTime "13:52:30 PST"]
[Termination "51616516516 won on time"]

1. d4 {[%clk 0:03:01.8]} 1... Nf6 {[%clk 0:02:58.7]} 2. c4 {[%clk 0:03:02.6]}
2... e6 {[%clk 0:02:58.8]} 3. Nc3 {[%clk 0:03:03]} 3... Bb4 {[%clk 0:02:57.1]}
4. Qc2 {[%clk 0:03:04.5]} 4... c5 {[%clk 0:02:55.9]} 5. dxc5 {[%clk 0:03:04.9]}
5... O-O {[%clk 0:02:54]} 6. a3 {[%clk 0:03:04.6]} 6... Bxc5 {[%clk 0:02:52.2]}
7. Nf3 {[%clk 0:03:04.9]} 7... a5 {[%clk 0:02:51.1]} 8. Bf4 {[%clk 0:03:03.7]}
8... Nc6 {[%clk 0:02:47.7]} 9. e3 {[%clk 0:03:04]} 9... Qe7 {[%clk 0:02:42.7]}
10. Be2 {[%clk 0:03:01.8]} 10... d5 {[%clk 0:02:36.5]} 11. cxd5 {[%clk
0:02:59.9]} 11... exd5 {[%clk 0:02:38.4]} 12. O-O {[%clk 0:02:58.8]} 12... Bg4
{[%clk 0:02:36.4]} 13. Rad1 {[%clk 0:02:55.9]} 13... Rfd8 {[%clk 0:02:32]} 14.
Qb3 {[%clk 0:02:02.7]} 14... Be6 {[%clk 0:02:13.3]} 15. Nd4 {[%clk 0:01:56.2]}
15... h6 {[%clk 0:02:04.1]} 16. h3 {[%clk 0:01:53.8]} 16... Rac8 {[%clk
0:01:54.6]} 17. Bf3 {[%clk 0:01:53.8]} 17... Bxd4 {[%clk 0:01:39.1]} 18. exd4
{[%clk 0:01:54.4]} 18... g5 {[%clk 0:01:28.9]} 19. Bh2 {[%clk 0:01:52.5]} 19...
g4 {[%clk 0:01:28.1]} 20. hxg4 {[%clk 0:01:51.8]} 20... Nxg4 {[%clk 0:01:27.8]}
21. Bg3 {[%clk 0:01:45.2]} 21... h5 {[%clk 0:01:13.1]} 22. Rfe1 {[%clk
0:01:46.1]} 22... Qg5 {[%clk 0:01:05.9]} 23. Qxb7 {[%clk 0:01:30]} 23... h4
{[%clk 0:01:06]} 24. Bc7 {[%clk 0:01:24.8]} 24... h3 {[%clk 0:00:48.2]} 25. g3
{[%clk 0:01:00.7]} 25... h2+ {[%clk 0:00:27.3]} 26. Kg2 {[%clk 0:01:00.8]} 26...
Qh5 {[%clk 0:00:26.2]} 27. Rh1 {[%clk 0:00:55.8]} 27... Ne7 {[%clk 0:00:19.1]}
28. Bxd8 {[%clk 0:00:53.4]} 28... Nf5 {[%clk 0:00:19]} 29. Bxg4 {[%clk
0:00:46.8]} 29... Qxg4 {[%clk 0:00:18.4]} 30. Rxh2 {[%clk 0:00:48]} 30... Rxd8
{[%clk 0:00:14.9]} 31. Qc7 {[%clk 0:00:46.4]} 31... Re8 {[%clk 0:00:13.4]} 32.
Qf4 {[%clk 0:00:45.6]} 32... Qg6 {[%clk 0:00:12.7]} 33. Rdh1 {[%clk 0:00:40.5]}
33... Kf8 {[%clk 0:00:08.9]} 34. Rh8+ {[%clk 0:00:35.7]} 34... Ke7 {[%clk
0:00:09.2]} 35. Qc7+ {[%clk 0:00:35.5]} 35... Bd7 {[%clk 0:00:05]} 36. Nxd5+
{[%clk 0:00:32.3]} 36... Ke6 {[%clk 0:00:03.7]} 37. Nf4+ {[%clk 0:00:32.9]} 1-0

[Event "*** Titled Tuesday Blitz"]
[Site "Chess.com"]
[Date "2018.01.02"]
[Round "4"]
[White "djogrodek1"]
[Black "TST2014"]
[Result "1-0"]
[WhiteElo "2452"]
[BlackElo "2306"]
[TimeControl "180+2"]
[EndTime "13:52:35 PST"]
[Termination "djogrodek1 won by checkmate"]

1. e4 {[%clk 0:03:01.3]} 1... c5 {[%clk 0:03:00.4]} 2. Nf3 {[%clk 0:03:02.1]}
2... Nc6 {[%clk 0:03:01.5]} 3. Bb5 {[%clk 0:03:02.3]} 3... g6 {[%clk 0:03:02]}
4. Bxc6 {[%clk 0:03:03.1]} 4... dxc6 {[%clk 0:03:02.2]} 5. d3 {[%clk 0:03:01.7]}
5... Bg7 {[%clk 0:03:02.2]} 6. h3 {[%clk 0:03:02.6]} 6... Nf6 {[%clk 0:03:02.1]}
7. Be3 {[%clk 0:03:02.8]} 7... b6 {[%clk 0:03:01.4]} 8. Nc3 {[%clk 0:03:03.1]}
8... O-O {[%clk 0:02:57]} 9. a4 {[%clk 0:02:59.3]} 9... a5 {[%clk 0:02:44.1]}
10. Qd2 {[%clk 0:02:58.6]} 10... e5 {[%clk 0:02:44.4]} 11. Bh6 {[%clk
0:02:52.8]} 11... Qd6 {[%clk 0:02:42]} 12. Bxg7 {[%clk 0:02:49.3]} 12... Kxg7
{[%clk 0:02:42.5]} 13. g4 {[%clk 0:02:50.5]} 13... Be6 {[%clk 0:02:22.2]} 14.
Ne2 {[%clk 0:02:48.4]} 14... Rad8 {[%clk 0:02:16.8]} 15. b3 {[%clk 0:02:40.7]}
15... Qc7 {[%clk 0:01:59.4]} 16. Qc3 {[%clk 0:02:33.8]} 16... Nd7 {[%clk
0:01:53]} 17. Ng3 {[%clk 0:02:34.9]} 17... f6 {[%clk 0:01:52.1]} 18. Rg1 {[%clk
0:02:33.1]} 18... Kh8 {[%clk 0:01:52.1]} 19. Qd2 {[%clk 0:02:12.3]} 19... Qd6
{[%clk 0:01:42.7]} 20. Nh4 {[%clk 0:02:08]} 20... Qe7 {[%clk 0:01:29.1]} 21.
Ngf5 {[%clk 0:01:32.9]} 21... Bxf5 {[%clk 0:01:21.5]} 22. gxf5 {[%clk
0:01:27.1]} 22... g5 {[%clk 0:01:21.9]} 23. Nf3 {[%clk 0:01:23.9]} 23... Rg8
{[%clk 0:01:21.4]} 24. O-O-O {[%clk 0:01:22.7]} 24... c4 {[%clk 0:01:17.9]} 25.
dxc4 {[%clk 0:01:17.1]} 25... b5 {[%clk 0:01:04.7]} 26. cxb5 {[%clk 0:01:11.4]}
26... cxb5 {[%clk 0:01:05.1]} 27. Qd6 {[%clk 0:01:11.5]} 27... Qf7 {[%clk
0:00:56.8]} 28. axb5 {[%clk 0:00:49.5]} 28... a4 {[%clk 0:00:56.6]} 29. Kb2
{[%clk 0:00:48.7]} 29... axb3 {[%clk 0:00:56.9]} 30. cxb3 {[%clk 0:00:50.6]}
30... Nb8 {[%clk 0:00:43.8]} 31. Qxd8 {[%clk 0:00:26.4]} 31... Rxd8 {[%clk
0:00:43.6]} 32. Rxd8+ {[%clk 0:00:28.3]} 32... Kg7 {[%clk 0:00:44.7]} 33. Rc1
{[%clk 0:00:28.5]} 33... Qa7 {[%clk 0:00:41.4]} 34. Rc2 {[%clk 0:00:23.4]} 34...
Nd7 {[%clk 0:00:40.4]} 35. Rdc8 {[%clk 0:00:19.2]} 35... Qa5 {[%clk 0:00:25.1]}
36. R8c7 {[%clk 0:00:17]} 36... Qxb5 {[%clk 0:00:25.8]} 37. Rd2 {[%clk
0:00:18.4]} 37... Qf1 {[%clk 0:00:19.7]} 38. Rdxd7+ {[%clk 0:00:16.6]} 38... Kh6
{[%clk 0:00:18.5]} 39. Rxh7# {[%clk 0:00:17.7]} 1-0

[Event "*** Titled Tuesday Blitz"]
[Site "Chess.com"]
[Date "2018.01.02"]
[Round "4"]
[White "VeraNebolsina"]
[Black "DiamondCrusher22"]
[Result "1-0"]
[WhiteElo "2168"]
[BlackElo "1944"]
[TimeControl "180+2"]
[EndTime "13:52:35 PST"]
[Termination "VeraNebolsina won on time"]

1. e4 {[%clk 0:03:01.9]} 1... e5 {[%clk 0:03:00.4]} 2. Nf3 {[%clk 0:03:02.2]}
2... Nc6 {[%clk 0:03:01.5]} 3. Bb5 {[%clk 0:03:01.9]} 3... Nf6 {[%clk
0:03:00.5]} 4. d3 {[%clk 0:03:02.3]} 4... d6 {[%clk 0:03:00.4]} 5. h3 {[%clk
0:03:00.5]} 5... Bd7 {[%clk 0:02:59.4]} 6. c3 {[%clk 0:02:53.9]} 6... g6 {[%clk
0:02:59.5]} 7. O-O {[%clk 0:02:47.4]} 7... Bg7 {[%clk 0:02:59.9]} 8. Be3 {[%clk
0:02:45]} 8... O-O {[%clk 0:02:51.7]} 9. Qc1 {[%clk 0:02:45.9]} 9... Nd4 {[%clk
0:01:53.6]} 10. Nxd4 {[%clk 0:02:24.5]} 10... exd4 {[%clk 0:01:52.7]} 11. Bxd7
{[%clk 0:02:25.4]} 11... dxe3 {[%clk 0:01:48.1]} 12. Ba4 {[%clk 0:02:24.6]}
12... exf2+ {[%clk 0:01:21.4]} 13. Rxf2 {[%clk 0:02:25.5]} 13... c6 {[%clk
0:01:20.8]} 14. Nd2 {[%clk 0:02:23.3]} 14... Nh5 {[%clk 0:01:19.8]} 15. Nf1
{[%clk 0:02:19.4]} 15... Qb6 {[%clk 0:01:15.1]} 16. Qe3 {[%clk 0:02:18.4]} 16...
Qxe3 {[%clk 0:01:00.6]} 17. Nxe3 {[%clk 0:02:19.1]} 17... b5 {[%clk 0:01:01.6]}
18. Bb3 {[%clk 0:02:19.5]} 18... a5 {[%clk 0:00:56.5]} 19. Raf1 {[%clk 0:02:19]}
19... d5 {[%clk 0:00:38.6]} 20. exd5 {[%clk 0:02:09.2]} 20... a4 {[%clk
0:00:39.5]} 21. Bd1 {[%clk 0:02:02.2]} 21... Ng3 {[%clk 0:00:36.2]} 22. dxc6
{[%clk 0:02:02.1]} 22... Nxf1 {[%clk 0:00:34.8]} 23. Kxf1 {[%clk 0:02:00.4]}
23... Rac8 {[%clk 0:00:29.2]} 24. Nd5 {[%clk 0:01:59.9]} 24... Rfe8 {[%clk
0:00:27.3]} 25. c7 {[%clk 0:01:56.1]} 25... Re5 {[%clk 0:00:25.9]} 26. Bf3
{[%clk 0:01:52.8]} 26... Bf8 {[%clk 0:00:22.6]} 27. d4 {[%clk 0:01:48.9]} 27...
Re6 {[%clk 0:00:20.8]} 28. g4 {[%clk 0:01:32.2]} 28... Bd6 {[%clk 0:00:21.7]}
29. g5 {[%clk 0:01:33.1]} 29... Bxc7 {[%clk 0:00:21.2]} 30. Bg4 {[%clk
0:01:33.1]} 30... Rd6 {[%clk 0:00:20.5]} 31. Ne7+ {[%clk 0:01:31.7]} 31... Kg7
{[%clk 0:00:19.9]} 32. Nxc8 {[%clk 0:01:32.3]} 32... Rd8 {[%clk 0:00:18]} 33.
Na7 {[%clk 0:01:32.7]} 33... Rb8 {[%clk 0:00:12.7]} 34. a3 {[%clk 0:01:29]}
34... Rb6 {[%clk 0:00:10.3]} 35. Bd7 {[%clk 0:01:24.1]} 35... b4 {[%clk
0:00:09.7]} 36. axb4 {[%clk 0:01:22.3]} 36... Ra6 {[%clk 0:00:09.5]} 37. Nb5
{[%clk 0:01:21.3]} 37... Bg3 {[%clk 0:00:08]} 38. Rf3 {[%clk 0:01:18.5]} 38...
Bh4 {[%clk 0:00:07.5]} 39. c4 {[%clk 0:00:55.3]} 39... Bxg5 {[%clk 0:00:07.2]}
40. c5 {[%clk 0:00:55.9]} 40... Bc1 {[%clk 0:00:06.6]} 41. c6 {[%clk 0:00:55.1]}
41... Bxb2 {[%clk 0:00:04]} 42. c7 {[%clk 0:00:55.4]} 42... a3 {[%clk 0:00:05]}
43. Nxa3 {[%clk 0:00:50.3]} 1-0

[Event "*** Titled Tuesday Blitz"]
[Site "Chess.com"]
[Date "2018.01.02"]
[Round "4"]
[White "gmjlh"]
[Black "viktorskliarov"]
[Result "1-0"]
[WhiteElo "2596"]
[BlackElo "2420"]
[TimeControl "180+2"]
[EndTime "13:52:44 PST"]
[Termination "gmjlh won by resignation"]

1. e4 {[%clk 0:02:54.6]} 1... c5 {[%clk 0:03:00.8]} 2. Nf3 {[%clk 0:02:55]} 2...
Nc6 {[%clk 0:03:02.3]} 3. Bb5 {[%clk 0:02:54.9]} 3... e6 {[%clk 0:03:03.5]} 4.
Bxc6 {[%clk 0:02:52.9]} 4... bxc6 {[%clk 0:03:04.6]} 5. O-O {[%clk 0:02:51.9]}
5... Ne7 {[%clk 0:03:05.6]} 6. Ng5 {[%clk 0:02:48.6]} 6... Ng6 {[%clk
0:03:03.1]} 7. f4 {[%clk 0:02:48.6]} 7... f6 {[%clk 0:03:01]} 8. Nh3 {[%clk
0:02:48.2]} 8... Bd6 {[%clk 0:02:26.4]} 9. f5 {[%clk 0:02:41.7]} 9... Ne5 {[%clk
0:02:27.3]} 10. Qh5+ {[%clk 0:02:41.6]} 10... Kf8 {[%clk 0:02:28.4]} 11. fxe6
{[%clk 0:02:23.5]} 11... dxe6 {[%clk 0:02:29.2]} 12. d3 {[%clk 0:02:23]} 12...
Qe8 {[%clk 0:02:28.8]} 13. Qxe8+ {[%clk 0:02:16.1]} 13... Kxe8 {[%clk
0:02:28.9]} 14. b3 {[%clk 0:02:15.9]} 14... c4 {[%clk 0:02:02.3]} 15. d4 {[%clk
0:02:01.3]} 15... Ng4 {[%clk 0:02:00.6]} 16. Bf4 {[%clk 0:01:51.4]} 16... Bxf4
{[%clk 0:02:00.6]} 17. Nxf4 {[%clk 0:01:44]} 17... e5 {[%clk 0:01:52.3]} 18.
dxe5 {[%clk 0:01:38]} 18... Nxe5 {[%clk 0:01:28.9]} 19. Nd2 {[%clk 0:01:38.3]}
19... cxb3 {[%clk 0:01:19.7]} 20. axb3 {[%clk 0:01:40.2]} 20... Ke7 {[%clk
0:01:19.9]} 21. Ra5 {[%clk 0:01:36.4]} 21... Rd8 {[%clk 0:01:20.3]} 22. Nf3
{[%clk 0:01:29.4]} 22... Nxf3+ {[%clk 0:01:20.8]} 23. gxf3 {[%clk 0:01:28.2]}
23... Rd2 {[%clk 0:01:04.6]} 24. Rf2 {[%clk 0:01:29.1]} 24... Rd1+ {[%clk
0:00:59.3]} 25. Kg2 {[%clk 0:01:30.6]} 25... g5 {[%clk 0:00:49.5]} 26. Nd3
{[%clk 0:01:31.1]} 26... h5 {[%clk 0:00:49.9]} 27. h4 {[%clk 0:00:44.5]} 27...
gxh4 {[%clk 0:00:46]} 28. Rxh5 {[%clk 0:00:44.8]} 28... h3+ {[%clk 0:00:47.1]}
29. Kh2 {[%clk 0:00:45.8]} 29... Be6 {[%clk 0:00:45.1]} 30. Nf4 {[%clk
0:00:46.7]} 30... Rad8 {[%clk 0:00:42.2]} 31. Rh7+ {[%clk 0:00:40.7]} 31... Bf7
{[%clk 0:00:39.9]} 32. Nd3 {[%clk 0:00:32.3]} 32... Rb1 {[%clk 0:00:18.3]} 33.
Re2 {[%clk 0:00:27.3]} 33... a5 {[%clk 0:00:18.9]} 34. e5 {[%clk 0:00:26.5]}
34... Kf8 {[%clk 0:00:17.5]} 35. e6 {[%clk 0:00:21.3]} 35... Bxe6 {[%clk
0:00:16.9]} 36. Rxe6 {[%clk 0:00:22.9]} 36... Kg8 {[%clk 0:00:17]} 37. Rxh3
{[%clk 0:00:22.6]} 37... a4 {[%clk 0:00:18]} 38. bxa4 {[%clk 0:00:22.1]} 38...
c5 {[%clk 0:00:19.4]} 39. Nxc5 {[%clk 0:00:19.8]} 39... Rd2+ {[%clk 0:00:20]}
40. Kg3 {[%clk 0:00:20.9]} 40... Rg1+ {[%clk 0:00:20.8]} 41. Kf4 {[%clk
0:00:21.8]} 41... Rxc2 {[%clk 0:00:22.2]} 42. Ne4 {[%clk 0:00:22.6]} 42... Kf7
{[%clk 0:00:23.4]} 43. Rxf6+ {[%clk 0:00:23.3]} 43... Kg7 {[%clk 0:00:24.1]} 44.
Rb6 {[%clk 0:00:24]} 44... Rc7 {[%clk 0:00:24.3]} 45. Rg3+ {[%clk 0:00:24.5]}
1-0